bitfinex/quotes_SOLUSD_20260120
["timestamp","ask_amount","ask_price","bid_price","bid_amount"]
[1768930260466,4.0327454,127.03,127.0,4.02842796]
[1768930260663,6.71271106,127.04,127.0,4.02842796]
[1768930260980,6.71282846,127.04,127.0,4.02842796]
[1768930261561,4.0327454,127.04,127.01,4.02842796]
[1768930261886,11.02477844,127.05,127.01,4.02842796]
[1768930262058,15.05752384,127.05,127.01,4.02842796]
[1768930262254,0.4736,127.05,127.02,4.02842796]
[1768930262454,0.4736,127.05,127.02,3.99842796]
[1768930264068,4.5063454,127.05,127.02,3.99842796]
[1768930265474,15.05747107,127.05,127.02,3.99842796]
[1768930265982,2.68008306,127.04,127.0,4.02842796]
[1768930266672,7.18642846,127.05,127.0,4.02842796]
[1768930267064,7.18642846,127.05,127.01,4.02842796]
[1768930267265,6.71282846,127.05,127.01,4.02842796]
[1768930268182,14.58378323,127.05,127.01,4.02842796]
[1768930269478,4.0327454,127.04,127.01,4.02842796]
[1768930269666,14.58378323,127.05,127.01,4.02842796]
[1768930270780,6.71282846,127.05,127.01,4.02842796]
[1768930271382,14.5837659,127.05,127.01,4.02842796]
[1768930274974,4.24063698,127.04,127.01,4.02842796]
[1768930275993,14.79165748,127.05,127.01,4.02842796]
[1768930276771,6.92072004,127.05,127.01,4.02842796]
[1768930277469,4.24063698,127.04,127.01,4.02842796]
[1768930279190,4.24063698,127.03,126.99,4.26747475]
[1768930279390,4.24063698,126.99,126.96,4.26747475]
[1768930279590,4.24063698,127.0,126.96,4.26747475]
[1768930279779,4.24063698,127.0,126.97,4.26747475]
[1768930279979,4.24063698,127.01,126.97,4.26747475]
[1768930280182,6.92072004,127.02,126.98,4.26747475]
[1768930280593,4.24063698,127.02,126.98,4.26747475]
[1768930280797,4.24063698,127.02,126.99,4.26747475]
[1768930281220,4.24063698,127.01,126.98,4.26747475]
[1768930281394,6.92072004,127.0,126.97,4.26747475]
[1768930281708,6.92072004,126.99,126.96,4.26747475]
[1768930281881,6.92072004,126.98,126.95,14.85659114]
[1768930285925,6.92072004,126.98,126.95,10.58911639]
[1768930285926,6.92072004,126.97,126.95,10.58911639]
[1768930286124,2.68008306,126.96,126.95,10.58911639]
[1768930286304,6.92072004,126.96,126.95,10.58911639]
[1768930287030,6.92072004,126.96,126.94,0.1]
[1768930287227,2.68008306,126.95,126.94,0.1]
[1768930287530,4.24063698,126.96,126.94,0.1]
[1768930287531,6.92072004,126.96,126.94,0.1]
[1768930288235,6.92072004,126.97,126.94,4.36747475]
[1768930288607,6.92072004,126.97,126.94,0.1]
[1768930289626,6.92072004,126.96,126.94,0.1]
[1768930290333,2.68008306,126.95,126.93,0.1]
[1768930290712,2.68008306,126.95,126.93,4.36747475]
[1768930291437,6.92072004,126.96,126.93,4.36747475]
[1768930292332,2.68008306,126.97,126.93,4.36747475]
[1768930292511,6.92072004,126.98,126.94,4.26747475]
[1768930292713,4.24063698,126.98,126.94,4.26747475]
[1768930292912,2.68008306,126.97,126.94,4.26747475]
[1768930293211,6.92072004,126.97,126.94,4.26747475]
[1768930293826,2.68008306,126.97,126.94,4.26747475]
[1768930295141,6.92072004,126.97,126.94,4.26747475]
[1768930296013,4.24063698,126.99,126.95,4.26747475]
[1768930296633,4.24063698,126.96,126.93,4.36747475]
[1768930296832,6.92072004,126.96,126.93,4.36747475]
[1768930298427,2.68008306,126.96,126.93,4.36747475]
[1768930298631,6.92072004,126.96,126.93,4.36747475]
[1768930298835,4.24063698,126.96,126.93,4.36747475]
[1768930299034,6.92072004,126.97,126.93,4.36747475]
[1768930299849,4.24063698,126.96,126.93,4.36747475]
[1768930301724,6.92072004,126.96,126.93,4.36747475]
[1768930303629,6.88275656,126.97,126.93,4.36747475]
[1768930303835,6.88275656,126.98,126.94,4.23525]
[1768930304235,4.2026735,126.96,126.93,4.33525]
[1768930304443,7.35635656,126.96,126.93,4.33525]
[1768930305244,7.29635657,126.96,126.93,4.33525]
[1768930305448,6.92617181,126.96,126.93,4.33525]
[1768930305631,4.24608875,126.96,126.93,4.33525]
[1768930306347,3.15368306,126.96,126.93,0.1]
[1768930307037,0.4736,126.96,126.93,0.1]
[1768930307241,3.15368306,126.96,126.93,0.1]
[1768930307439,4.12817796,126.95,126.93,0.1]
[1768930307743,4.06817795,126.95,126.93,0.1]
[1768930310659,6.80826102,126.94,126.91,21.38975468]
[1768930310837,4.12817796,126.94,126.91,21.38975468]
[1768930311033,4.12817796,126.94,126.91,24.06983774]
[1768930311545,6.80826102,126.94,126.91,4.12975468]
[1768930311749,4.12817796,126.93,126.9,4.12975468]
[1768930312146,4.12817796,126.94,126.91,4.12975468]
[1768930313154,4.12817796,126.95,126.92,4.12975468]
[1768930316956,6.80826102,126.97,126.93,4.12975468]
[1768930317166,7.87546374,126.98,126.92,2.68008306]
[1768930317167,4.12817796,126.98,126.95,4.12975468]
[1768930317561,4.12817796,126.98,126.94,6.80983774]
[1768930318158,4.12817796,126.98,126.94,4.12975468]
[1768930318545,4.12817796,126.97,126.94,4.12975468]
[1768930318744,4.12817796,126.97,126.93,10.08626788]
[1768930318966,4.12817796,126.96,126.93,10.08626788]
[1768930319169,6.80826102,126.96,126.92,4.12975468]
[1768930319340,4.12817796,126.95,126.92,4.12975468]
[1768930319842,4.12817796,126.94,126.91,10.08626788]
[1768930320358,4.12817796,126.92,126.9,17.26]
[1768930320552,6.80826102,126.93,126.9,21.38975468]
[1768930320755,4.12817796,126.93,126.9,21.38975468]
[1768930321061,6.80826102,126.94,126.9,21.38975468]
[1768930322176,4.12817796,126.94,126.91,4.12975468]
[1768930322465,4.12817796,126.93,126.9,21.38975468]
[1768930324455,4.12817796,126.92,126.89,4.12975468]
[1768930324689,6.81259474,126.92,126.89,4.12975468]
[1768930325381,7.28619474,126.92,126.89,4.12975468]
[1768930326965,4.12817796,126.91,126.88,8.34168146]
[1768930327169,6.81259474,126.91,126.88,8.34168146]
[1768930327347,7.28619474,126.92,126.89,4.12975468]
[1768930328361,6.81259474,126.92,126.89,4.12975468]
[1768930329173,4.12817796,126.9,126.88,0.1]
[1768930329367,4.09817511,126.9,126.88,0.1]
[1768930330692,2.68441678,126.91,126.88,4.22975468]
[1768930330870,10.56346573,126.92,126.88,4.22975468]
[1768930331287,4.12817796,126.91,126.88,4.22975468]
[1768930331587,6.81259474,126.92,126.88,4.22975468]
[1768930331791,14.69109207,126.93,126.89,4.12975468]
[1768930331971,14.69109207,126.93,126.88,4.22975468]
[1768930331972,6.81259474,126.91,126.88,4.22975468]
[1768930333092,2.68441678,126.93,126.88,2.78441678]
[1768930333300,6.81259474,126.93,126.89,4.12975468]
[1768930333998,14.69101195,126.93,126.89,4.12975468]
[1768930334198,6.81259474,126.92,126.89,4.12975468]
[1768930334803,2.68441678,126.9,126.88,4.22975468]
[1768930334987,6.81259474,126.91,126.88,4.22975468]
[1768930335375,4.12817796,126.91,126.88,4.22975468]
[1768930335775,6.81259474,126.91,126.88,4.22975468]
[1768930338001,4.12817796,126.91,126.88,4.22975468]
[1768930338381,6.81259474,126.91,126.88,4.22975468]
[1768930338584,4.24469374,126.89,126.88,0.1]
[1768930338885,6.92911052,126.89,126.88,0.1]
[1768930339697,2.68441678,126.89,126.88,0.1]
[1768930339899,6.92911052,126.9,126.88,0.1]
[1768930340717,4.24469374,126.9,126.88,0.1]
[1768930341222,10.56246074,126.94,126.9,4.12873602]
[1768930341622,2.68441678,126.93,126.9,4.12873602]
[1768930342213,7.87804396,126.94,126.9,4.12873602]
[1768930342419,2.68441678,126.93,126.9,4.12873602]
[1768930343100,6.76371899,126.93,126.9,4.12873602]
[1768930343501,2.68441678,126.95,126.91,4.12873602]
[1768930343699,14.64048764,126.96,126.92,4.12873602]
[1768930345310,14.63826632,126.95,126.91,4.12873602]
[1768930345621,6.75955574,126.94,126.89,4.12873602]
[1768930345818,6.75955574,126.94,126.9,4.12873602]
[1768930346318,2.68441678,126.94,126.91,4.12873602]
[1768930346629,0.4736,126.94,126.91,4.12873602]
[1768930347809,4.06277084,126.93,126.9,4.12873602]
[1768930348030,3.15801678,126.94,126.9,4.12873602]
[1768930349034,3.15801678,126.94,126.91,4.12873602]
[1768930349325,0.4736,126.94,126.92,4.12873602]
[1768930352440,0.4736,126.94,126.91,4.12873602]
[1768930354342,12.37868269,126.94,126.91,4.12873602]
[1768930354724,12.37868269,126.94,126.88,25.24144444]
[1768930354725,4.02166502,126.92,126.89,4.12873602]
[1768930354931,8.35134695,126.94,126.88,17.36]
[1768930354932,6.7060818,126.91,126.88,21.48873602]
[1768930355142,2.68441678,126.91,126.88,4.22873602]
[1768930355338,6.7060818,126.92,126.88,4.22873602]
[1768930356436,6.70047622,126.9,126.88,0.1]
[1768930357451,3.91051824,126.88,126.85,17.26]
[1768930357624,2.68441678,126.88,126.85,21.38873602]
[1768930357940,2.68441678,126.88,126.85,4.12873602]
[1768930358333,6.58945748,126.89,126.85,4.12873602]
[1768930360351,14.47065515,126.89,126.85,4.12873602]
[1768930360940,6.57339943,126.88,126.85,4.12873602]
[1768930361351,6.57339943,126.88,126.84,0.1]
[1768930361545,2.68441678,126.87,126.84,4.22873602]
[1768930361846,3.88898265,126.88,126.84,4.22873602]
[1768930361847,6.57339943,126.88,126.84,4.22873602]
[1768930362221,14.45502511,126.88,126.84,4.22873602]
[1768930363457,14.44415525,126.89,126.85,4.12873602]
[1768930363628,3.83116366,126.9,126.86,6.76469258]
[1768930363831,3.83116366,126.92,126.88,4.0802758]
[1768930364043,3.83116366,126.92,126.85,2.68441678]
[1768930364044,14.39331795,126.94,126.9,4.0802758]
[1768930364431,6.51558044,126.94,126.9,4.0802758]
[1768930364655,10.56169496,126.95,126.91,4.0802758]
[1768930364838,14.39285862,126.95,126.91,4.0802758]
[1768930366054,11.70844184,126.95,126.91,4.0802758]
[1768930366254,14.39285862,126.95,126.91,4.0802758]
[1768930366553,3.83116366,126.95,126.92,4.19475169]
[1768930366745,14.41016148,126.96,126.92,6.87916847]
[1768930367057,14.41016148,126.96,126.92,4.19475169]
[1768930367357,6.53345331,126.96,126.92,4.19475169]
[1768930367539,14.88364472,126.96,126.92,4.19475169]
[1768930368428,14.88364472,126.96,126.94,4.19475169]
[1768930368429,0.4736,126.96,126.94,4.19475169]
[1768930368753,0.4736,126.96,126.94,6.87916847]
[1768930372132,0.4736,126.96,126.94,6.87916847]
[1768930373554,3.82143462,127.0,126.95,6.87916847]
[1768930373855,3.82143462,127.0,126.9,18.08441678]
[1768930373856,14.38011204,127.0,126.96,6.87916847]
[1768930374239,4.00909073,126.99,126.96,4.19475169]
[1768930375755,11.88335137,127.0,126.96,4.19475169]
[1768930375960,14.56776815,127.0,126.96,4.19475169]
[1768930378942,4.00909073,126.99,126.96,4.19475169]
[1768930379461,6.69350751,126.99,126.95,4.19475169]
[1768930379840,14.56823709,126.99,126.95,4.19475169]
[1768930380757,4.00909073,126.98,126.95,4.19475169]
[1768930381014,6.69350751,126.97,126.93,4.19475169]
[1768930381255,2.68441678,126.95,126.92,4.19475169]
[1768930381466,2.68441678,126.94,126.91,4.19475169]
[1768930381759,2.68441678,126.94,126.89,4.19475169]
[1768930381760,14.57251167,126.92,126.89,4.19475169]
[1768930381942,6.69350751,126.92,126.89,4.19475169]
[1768930382345,14.5725512,126.92,126.89,4.19475169]
[1768930382544,2.68441678,126.9,126.87,4.19475169]
[1768930382747,6.69350751,126.9,126.86,4.19475169]
[1768930383049,6.69574995,126.89,126.86,4.19475169]
[1768930383249,2.68665922,126.88,126.84,21.55475169]
[1768930383464,2.68665922,126.88,126.84,4.29475169]
[1768930383639,2.68665922,126.87,126.84,4.29475169]
[1768930384348,2.68665922,126.88,126.84,4.29475169]
[1768930384777,2.68665922,126.87,126.84,4.29475169]
[1768930384982,11.89017824,126.89,126.84,4.29475169]
[1768930384983,2.68665922,126.88,126.84,4.29475169]
[1768930385179,2.68665922,126.91,126.86,4.19475169]
[1768930385869,2.68665922,126.91,126.87,4.19475169]
[1768930386181,14.5748634,126.92,126.88,2.68665922]
[1768930386594,14.5748634,126.92,126.87,6.88141091]
[1768930387160,11.88772682,126.93,126.89,4.19475169]
[1768930387366,10.56529531,126.93,126.9,4.19475169]
[1768930387582,14.57438604,126.93,126.89,6.88141091]
[1768930387778,6.69574995,126.93,126.9,4.19475169]
[1768930387956,14.57375306,126.94,126.9,6.88141091]
[1768930388160,10.56466233,126.94,126.91,4.19475169]
[1768930388361,7.87800311,126.94,126.91,4.19475169]
[1768930389057,4.00909073,126.92,126.86,4.19475169]
[1768930389268,7.87800311,126.94,126.86,6.88141091]
[1768930389486,2.68665922,126.9,126.86,4.19475169]
[1768930389684,2.68665922,126.9,126.86,6.88141091]
[1768930390387,17.26,126.93,126.84,11.09236195]
[1768930390686,2.68665922,126.88,126.84,11.09236195]
[1768930391005,6.71761391,126.88,126.84,11.0123656]
[1768930391576,10.72670464,126.88,126.84,11.0123656]
[1768930391777,10.72670464,126.88,126.84,4.29475169]
[1768930392285,10.72670464,126.88,126.84,11.0123656]
[1768930392492,10.72670464,126.88,126.84,4.29475169]
[1768930395374,10.72670464,126.88,126.84,11.0123656]
[1768930395573,4.00909073,126.88,126.84,4.29475169]
[1768930395891,6.71761391,126.88,126.85,3.88457833]
[1768930396293,10.53954468,126.88,126.84,10.70219224]
[1768930396478,18.42104857,126.88,126.84,3.98457833]
[1768930396686,6.71761391,126.87,126.84,3.98457833]
[1768930396891,6.71761391,126.86,126.84,0.1]
[1768930397079,3.82193077,126.84,126.83,0.1]
[1768930397397,3.0823685,126.83,126.79,4.10601459]
[1768930397607,6.71761391,126.81,126.77,3.88457833]
[1768930397898,6.71761391,126.8,126.77,4.10796447]
[1768930398103,7.44978055,126.81,126.77,3.88457833]
[1768930398281,6.71761391,126.79,126.76,4.21423143]
[1768930398475,6.71761391,126.79,126.76,8.09880976]
[1768930398688,9.79689767,126.8,126.76,3.98457833]
[1768930398999,6.71761391,126.79,126.76,3.98457833]
[1768930401511,3.07024051,126.82,126.77,3.88457833]
[1768930401806,9.78490898,126.81,126.77,3.88457833]
[1768930402012,6.71761391,126.8,126.77,3.88457833]
[1768930402396,6.71761391,126.78,126.76,0.1]
[1768930402903,6.65761392,126.78,126.76,0.1]
[1768930403713,3.06729507,126.79,126.76,0.1]
[1768930403714,6.71761391,126.77,126.76,0.1]
[1768930403915,6.71761391,126.78,126.76,0.1]
[1768930404806,6.71761391,126.77,126.76,0.1]
[1768930405213,9.78114074,126.78,126.76,0.1]
[1768930405708,7.88600869,126.81,126.76,3.98457833]
[1768930405916,6.71761391,126.81,126.78,3.88457833]
[1768930406618,6.71761391,126.82,126.78,3.88457833]
[1768930406793,6.71761391,126.81,126.78,3.88457833]
[1768930406995,9.77564914,126.8,126.76,10.70219224]
[1768930407394,6.71761391,126.8,126.77,3.88457833]
[1768930408801,6.71761391,126.82,126.79,3.88457833]
[1768930409314,6.71761391,126.81,126.78,3.88457833]
[1768930409515,3.05447849,126.82,126.78,3.88457833]
[1768930409703,6.71761391,126.8,126.77,3.88457833]
[1768930410628,9.77034461,126.81,126.77,3.88457833]
[1768930412727,6.71761391,126.8,126.77,3.88457833]
[1768930412932,2.69038148,126.8,126.77,3.88457833]
[1768930413224,2.69038148,126.78,126.76,0.1]
[1768930414524,2.69038148,126.77,126.74,3.88457833]
[1768930414899,2.69038148,126.76,126.73,15.8838742]
[1768930415099,5.63466978,126.77,126.73,18.57425568]
[1768930415299,5.63466978,126.77,126.73,14.46573489]
[1768930415808,2.69038148,126.78,126.74,3.88457833]
[1768930416410,2.69038148,126.77,126.74,3.88457833]
[1768930416709,2.69038148,126.76,126.74,3.88457833]
[1768930416909,2.69038148,126.75,126.71,8.3233212]
[1768930417114,2.69038148,126.73,126.71,12.20789953]
[1768930417317,2.69038148,126.73,126.71,4.20886804]
[1768930417515,2.69038148,126.75,126.72,3.88457833]
[1768930418565,2.93945204,126.74,126.71,0.1]
[1768930418710,2.69038148,126.68,126.67,2.05553942]
[1768930418909,10.58450226,126.68,126.63,10.69121129]
[1768930419117,2.69038148,126.64,126.63,14.57578962]
[1768930419313,2.69038148,126.64,126.62,3.88457833]
[1768930419926,7.89412078,126.68,126.61,3.88457833]
[1768930420305,2.69038148,126.7,126.63,3.88457833]
[1768930420504,2.69038148,126.7,126.66,3.88457833]
[1768930420505,17.28,126.7,126.66,3.88457833]
[1768930420821,17.28,126.7,126.66,6.57495981]
[1768930420822,2.69038148,126.7,126.66,6.57495981]
[1768930421025,6.73603901,126.7,126.67,3.88457833]
[1768930421202,5.34408856,126.74,126.67,3.88457833]
[1768930421402,6.73603901,126.7,126.67,3.88457833]
[1768930423326,7.88892395,126.76,126.7,3.88457833]
[1768930423520,6.73603901,126.75,126.7,10.62061734]
[1768930423918,6.73603901,126.74,126.7,10.62061734]
[1768930424312,39.4382448,126.79,126.67,7.89435807]
[1768930424313,19.71663366,126.8,126.73,4.0222215]
[1768930424525,17.28,126.79,126.74,4.0222215]
[1768930424821,17.28,126.79,126.72,4.0222215]
[1768930424822,6.73603901,126.76,126.72,4.0222215]
[1768930425028,6.73603901,126.76,126.72,10.75826051]
[1768930425224,6.73603901,126.75,126.71,3.94028152]
[1768930425425,7.88767944,126.78,126.71,3.94028152]
[1768930425630,6.73603901,126.76,126.72,6.73603901]
[1768930425939,6.73603901,126.77,126.73,3.94028152]
[1768930426128,6.73603901,126.77,126.73,10.67632053]
[1768930426328,6.73603901,126.75,126.71,10.67632053]
[1768930426526,6.73603901,126.76,126.72,3.94028152]
[1768930426721,6.73603901,126.77,126.73,10.67632053]
[1768930427041,6.73603901,126.77,126.74,3.94028152]
[1768930427428,7.88667815,126.8,126.74,3.94028152]
[1768930427429,6.73603901,126.78,126.74,3.94028152]
[1768930427938,6.73603901,126.78,126.74,10.67632053]
[1768930428439,6.73603901,126.79,126.75,3.94028152]
[1768930428630,6.73603901,126.8,126.75,10.67632053]
[1768930429636,6.73603901,126.8,126.77,3.94028152]
[1768930429949,6.73603901,126.79,126.75,10.67632053]
[1768930430239,6.73603901,126.79,126.75,3.94028152]
[1768930430444,6.73603901,126.78,126.73,10.67632053]
[1768930430756,6.73603901,126.77,126.73,10.67632053]
[1768930432245,6.73603901,126.77,126.74,3.94028152]
[1768930432630,7.88833456,126.77,126.68,20.74408856]
[1768930432853,6.73603901,126.71,126.69,3.94028152]
[1768930433151,6.73603901,126.72,126.69,3.94028152]
[1768930433731,11.9594766,126.8,126.72,3.94028152]
[1768930433732,6.73603901,126.76,126.72,3.94028152]
[1768930434340,6.73603901,126.75,126.72,3.94028152]
[1768930435948,6.73603901,126.76,126.73,3.94028152]
[1768930436351,6.73603901,126.75,126.71,3.94028152]
[1768930436728,6.73603901,126.73,126.67,3.94028152]
[1768930436927,6.73603901,126.72,126.68,3.94028152]
[1768930437339,6.73603901,126.73,126.69,3.94028152]
[1768930437539,6.73603901,126.72,126.69,3.94028152]
[1768930439041,6.73603901,126.73,126.69,3.94028152]
[1768930440144,6.73603901,126.72,126.69,3.94028152]
[1768930441761,6.73603901,126.76,126.72,3.94028152]
[1768930442231,17.3,126.78,126.72,3.94028152]
[1768930442432,6.73603901,126.75,126.72,3.94028152]
[1768930443346,6.73603901,126.76,126.72,3.94028152]
[1768930443552,6.73603901,126.77,126.73,3.94028152]
[1768930443967,6.73603901,126.74,126.69,3.94028152]
[1768930444156,6.73603901,126.74,126.7,3.94028152]
[1768930444950,6.73161965,126.76,126.71,6.73161965]
[1768930445152,6.73161965,126.78,126.73,3.94028152]
[1768930446064,6.73161965,126.77,126.73,3.94028152]
[1768930446455,6.73161965,126.78,126.73,3.94028152]
[1768930446647,6.73161965,126.78,126.74,3.94028152]
[1768930447266,6.73161965,126.77,126.72,3.94028152]
[1768930447440,0.89865094,126.76,126.72,3.94028152]
[1768930447843,6.73161965,126.77,126.73,3.94028152]
[1768930448052,6.73161965,126.78,126.74,3.94028152]
[1768930449766,6.73161965,126.77,126.72,3.94028152]
[1768930450061,6.73161965,126.77,126.73,3.94028152]
[1768930450770,6.73161965,126.78,126.73,3.94028152]
[1768930451160,6.73161965,126.77,126.73,3.94028152]
[1768930451872,6.73161965,126.78,126.73,3.94028152]
[1768930452875,6.73161965,126.78,126.74,3.94028152]
[1768930454160,6.73161965,126.77,126.74,3.94028152]
[1768930454561,6.73161965,126.76,126.74,3.94028152]
[1768930454772,17.36258834,126.81,126.74,3.94028152]
[1768930454958,6.73161965,126.78,126.74,3.94028152]
[1768930456770,6.73161965,126.77,126.74,3.94028152]
[1768930456966,6.73161965,126.78,126.74,3.94028152]
[1768930458362,6.73161965,126.79,126.75,3.78356554]
[1768930459180,25.24847085,126.81,126.76,3.78356554]
[1768930459181,6.73161965,126.8,126.76,3.78356554]
[1768930459375,6.81420799,126.81,126.76,3.78356554]
[1768930459590,6.73161965,126.8,126.76,3.78356554]
[1768930461174,6.73161965,126.78,126.74,15.4]
[1768930461374,6.73161965,126.77,126.74,3.78356554]
[1768930462076,6.73161965,126.76,126.74,3.78356554]
[1768930462689,6.73161965,126.76,126.74,3.75356554]
[1768930462992,6.73161965,126.77,126.74,3.75356554]
[1768930463369,7.88663796,126.8,126.74,3.75356554]
[1768930463370,6.73161965,126.78,126.74,3.75356554]
[1768930463614,6.73161965,126.79,126.74,6.73161965]
[1768930463770,6.81420799,126.81,126.75,6.73161965]
[1768930464279,5.32834339,126.8,126.75,6.73161965]
[1768930464485,6.81420799,126.81,126.75,6.73161965]
[1768930464784,6.81420799,126.81,126.76,3.78356554]
[1768930465965,6.81420799,126.81,126.77,3.78356554]
[1768930466486,7.28850799,126.81,126.77,3.78356554]
[1768930468783,6.73161965,126.8,126.77,3.78356554]
[1768930473591,6.73161965,126.79,126.75,3.78356554]
[1768930474399,6.73161965,126.77,126.75,3.78356554]
[1768930475099,6.73161965,126.78,126.75,3.78356554]
[1768930475893,6.73161965,126.77,126.74,3.78356554]
[1768930476104,6.73161965,126.77,126.73,3.78356554]
[1768930477102,6.73161965,126.76,126.73,3.78356554]
[1768930478288,6.73161965,126.77,126.73,3.78356554]
[1768930478631,6.73161965,126.78,126.73,3.78356554]
[1768930478996,6.73161965,126.77,126.73,3.78356554]
[1768930479799,6.73161965,126.78,126.73,3.78356554]
[1768930479984,6.73161965,126.78,126.74,3.78356554]
[1768930481499,6.73161965,126.79,126.75,3.78356554]
[1768930481803,6.81420799,126.81,126.76,3.78356554]
[1768930483381,0.08258834,126.81,126.79,3.78356554]
[1768930484426,6.81420799,126.81,126.78,3.61130551]
[1768930484583,0.08258834,126.81,126.76,3.61130551]
[1768930484781,6.73161965,126.8,126.76,3.61130551]
[1768930487001,2.69022136,126.8,126.76,3.61130551]
[1768930488203,2.7728097,126.81,126.77,3.78038496]
[1768930488395,0.08258834,126.81,126.77,3.78038496]
[1768930488593,0.4743,126.8,126.77,3.78038496]
[1768930489501,3.16452136,126.8,126.77,3.78038496]
[1768930490711,0.4743,126.8,126.77,3.78038496]
[1768930491512,3.16452136,126.8,126.77,3.78038496]
[1768930492510,2.69022136,126.79,126.77,3.78038496]
[1768930492684,3.16452136,126.8,126.77,3.78038496]
[1768930496516,3.16452136,126.8,126.73,8.71230451]
[1768930496721,2.69022136,126.74,126.71,8.71230451]
[1768930496902,2.69022136,126.75,126.7,3.78038496]
[1768930497224,2.69022136,126.76,126.71,3.78038496]
[1768930497429,2.69022136,126.78,126.73,3.78038496]
[1768930497992,2.69022136,126.77,126.73,3.78038496]
[1768930498820,2.69022136,126.78,126.73,3.78038496]
[1768930499029,2.69022136,126.77,126.73,3.78038496]
[1768930499615,2.69022136,126.78,126.74,3.78038496]
[1768930500314,2.69022136,126.77,126.74,3.78038496]
[1768930500617,0.08258834,126.81,126.75,3.78038496]
[1768930500810,0.08258834,126.81,126.78,3.78038496]
[1768930501018,0.08258834,126.81,126.78,6.47060632]
[1768930501195,0.08258834,126.81,126.79,6.47060632]
[1768930501834,2.69022136,126.85,126.8,6.47060632]
[1768930502200,2.69022136,126.84,126.8,3.78038496]
[1768930502399,7.88341583,126.85,126.76,37.00150422]
[1768930502400,2.69022136,126.82,126.78,6.47060632]
[1768930502606,2.69022136,126.82,126.79,3.78038496]
[1768930503718,7.88407322,126.84,126.79,3.78038496]
[1768930503899,2.69022136,126.82,126.79,3.78038496]
[1768930504795,2.69022136,126.82,126.78,3.78038496]
[1768930505000,2.68956046,126.82,126.78,3.78038496]
[1768930505615,2.68956046,126.79,126.73,8.71230451]
[1768930505949,2.68956046,126.74,126.69,3.78038496]
[1768930506225,17.28,126.77,126.69,3.78038496]
[1768930506433,2.68956046,126.75,126.7,3.78038496]
[1768930506620,2.68956046,126.74,126.7,3.78038496]
[1768930506927,5.34408856,126.78,126.7,3.78038496]
[1768930507127,6.73236263,126.77,126.73,3.78038496]
[1768930507426,25.16680004,126.8,126.73,3.78038496]
[1768930507630,6.73236263,126.77,126.73,3.78038496]
[1768930508309,6.73236263,126.79,126.75,3.78038496]
[1768930508510,26.44248079,126.84,126.77,3.78038496]
[1768930508511,6.73236263,126.81,126.77,3.78038496]
[1768930508926,6.73236263,126.82,126.78,3.78038496]
[1768930509228,7.88208402,126.87,126.8,3.78038496]
[1768930509426,6.63817788,126.9,126.82,3.78038496]
[1768930509427,6.73236263,126.86,126.82,3.78038496]
[1768930509733,6.73236263,126.84,126.8,3.78038496]
[1768930511013,6.73236263,126.83,126.8,3.78038496]
[1768930511221,6.73236263,126.82,126.8,3.78038496]
[1768930511401,6.73236263,126.83,126.8,3.78038496]
[1768930513008,6.73236263,126.82,126.78,3.78038496]
[1768930513207,6.73236263,126.81,126.78,3.78038496]
[1768930513423,6.73236263,126.83,126.79,3.78038496]
[1768930513733,6.73236263,126.83,126.8,3.78038496]
[1768930513910,27.58776254,126.87,126.8,3.78038496]
[1768930513911,6.73236263,126.84,126.8,10.51274759]
[1768930514214,6.73236263,126.84,126.8,3.78038496]
[1768930514723,6.73236263,126.81,126.78,3.78038496]
[1768930514936,6.73236263,126.82,126.79,3.59831419]
[1768930515424,6.73236263,126.83,126.8,3.59831419]
[1768930516428,6.73236263,126.82,126.78,3.59831419]
[1768930517711,6.73236263,126.82,126.79,3.59831419]
[1768930517918,6.73236263,126.83,126.79,3.59831419]
[1768930518322,6.73236263,126.82,126.77,10.33067682]
[1768930518534,6.73236263,126.81,126.77,3.59831419]
[1768930518833,6.73236263,126.81,126.78,3.59831419]
[1768930519332,6.73236263,126.82,126.78,3.59831419]
[1768930519521,6.73236263,126.79,126.76,3.59831419]
[1768930519720,0.12002359,126.82,126.76,3.59831419]
[1768930519916,6.73236263,126.8,126.76,3.59831419]
[1768930520524,6.73236263,126.81,126.77,3.59831419]
[1768930521428,6.73236263,126.8,126.75,3.59831419]
[1768930521637,6.73236263,126.79,126.75,3.59831419]
[1768930521941,6.73236263,126.77,126.74,3.59831419]
[1768930522249,6.73236263,126.76,126.73,3.59831419]
[1768930522423,0.11381924,126.8,126.74,3.59831419]
[1768930522424,6.73236263,126.78,126.74,3.59831419]
[1768930522817,6.73236263,126.79,126.75,3.59831419]
[1768930523529,6.73236263,126.77,126.73,3.59831419]
[1768930523734,6.73236263,126.76,126.73,3.59831419]
[1768930524038,6.73236263,126.77,126.73,3.59831419]
[1768930525516,6.73236263,126.78,126.74,3.59831419]
[1768930526033,6.73236263,126.79,126.76,3.59831419]
[1768930526423,6.73236263,126.77,126.73,3.59831419]
[1768930526616,6.73236263,126.75,126.73,3.59831419]
[1768930526820,6.73236263,126.75,126.7,6.73236263]
[1768930526821,17.37892128,126.84,126.75,3.59831419]
[1768930527138,2.69000226,126.8,126.77,3.59831419]
[1768930527618,2.69000226,126.79,126.77,3.59831419]